bitfinex/quotes_ETHUSD_20241207
["timestamp","ask_amount","ask_price","bid_price","bid_amount"]
[1733610955395,4.084731,4004.1,4004.0,0.08572563]
[1733610958379,4.08484099,4004.1,4004.0,0.08572563]
[1733610958896,6.18004437,4004.1,4004.0,0.08572563]
[1733610959205,6.18005223,4004.1,4004.0,0.08572563]
[1733610959380,6.17990193,4004.1,4004.0,0.08572563]
[1733610959781,4.08477143,4004.1,4004.0,0.08572563]
[1733610959975,6.1798905,4004.1,4004.0,0.08572563]
[1733610960187,6.17987268,4004.1,4004.0,0.08572563]
[1733610960408,5.99346481,4004.1,4004.0,0.08572563]
[1733610960717,6.17986658,4004.1,4004.0,0.08572563]
[1733610961206,3.89834574,4004.1,4004.0,0.08572563]
[1733610961404,4.08474173,4004.1,4004.0,0.08572563]
[1733610961595,6.17969585,4004.1,4004.0,0.08572563]
[1733610961772,6.17920895,4004.1,4004.0,0.08572563]
[1733610962177,6.17916647,4004.1,4004.0,0.08572563]
[1733610962388,5.99277468,4004.1,4004.0,0.08572563]
[1733610962593,6.17915645,4004.1,4004.0,0.08572563]
[1733610963272,5.99277468,4004.1,4004.0,0.08572563]
[1733610963487,6.17915336,4004.1,4004.0,0.08572563]
[1733610964675,6.17915626,4004.1,4004.0,0.08572563]
[1733610966696,6.17862139,4004.1,4004.0,0.08572563]
[1733610967280,4.08366727,4004.1,4004.0,0.08572563]
[1733610967613,3.89728569,4004.1,4004.0,0.08572563]
[1733610967791,3.73546597,4004.1,4004.0,0.08572563]
[1733610968673,3.89647701,4004.1,4004.0,0.08572563]
[1733610969023,3.73549198,4004.1,4004.0,0.08572563]
[1733610970214,3.89647993,4004.1,4004.0,0.08572563]
[1733610970579,3.73546506,4004.1,4004.0,0.08572563]
[1733610971590,1.57073576,4004.1,4004.0,0.08572563]
[1733610971789,2.16466287,4004.1,4004.0,0.08572563]
[1733610972324,3.73539863,4004.1,4004.0,0.08572563]
[1733610973775,3.89643139,4004.1,4004.0,0.08572563]
[1733610974442,3.73543321,4004.1,4004.0,0.08572563]
[1733610976533,2.16466287,4004.1,4004.0,0.08572563]
[1733610976740,3.73552037,4004.1,4004.0,0.08572563]
[1733610978911,2.16475003,4004.1,4004.0,0.08572563]
[1733610979603,3.73552037,4004.1,4004.0,0.08572563]
[1733610981521,1.57077034,4004.1,4004.0,0.08572563]
[1733610981849,3.73568239,4004.1,4004.0,0.08572563]
[1733610982345,2.16491205,4004.1,4004.0,0.08572563]
[1733610983633,3.21219171,4004.1,4004.0,0.08572563]
[1733610983837,2.16491205,4004.1,4004.0,0.08572563]
[1733610984628,3.73568239,4004.1,4004.0,0.08572563]
[1733610986525,1.7321635,4004.1,4004.0,0.08572563]
[1733610986726,4.08396115,4004.1,4004.0,0.08572563]
[1733610986943,3.7363858,4004.1,4004.0,0.08572563]
[1733610988056,4.08400587,4004.1,4004.0,0.08572563]
[1733610988230,3.73645418,4004.1,4004.0,0.08572563]
[1733610988413,3.89754453,4004.1,4004.0,0.08572563]
[1733610988830,3.73650855,4004.1,4004.0,0.08572563]
[1733610990455,3.89772609,4004.1,4004.0,0.08572563]
[1733610996524,1.73249012,4004.1,4004.0,0.08572563]
[1733610996723,3.89898594,4004.1,4004.0,0.08572563]
[1733611000851,6.18039949,4004.1,4004.0,0.08572563]
[1733611001352,5.99394006,4004.1,4004.0,0.08572563]
[1733611001553,6.1803797,4004.1,4004.0,0.08572563]
[1733611002622,5.99394006,4004.1,4004.0,0.08572563]
[1733611002823,6.18037716,4004.1,4004.0,0.08572563]
[1733611003856,6.18037453,4004.1,4004.0,0.08572563]
[1733611004961,6.18038035,4004.1,4004.0,0.08572563]
[1733611005633,5.99394006,4004.1,4004.0,0.08572563]
[1733611005833,6.18038213,4004.1,4004.0,0.08572563]
[1733611006348,5.99394006,4004.1,4004.0,0.08572563]
[1733611006550,6.18039105,4004.1,4004.0,0.08572563]
[1733611006758,6.18070521,4004.1,4004.0,0.08572563]
[1733611008860,5.99425422,4004.1,4004.0,0.08572563]
[1733611009769,6.18070443,4004.1,4004.0,0.08572563]
[1733611011533,6.18108907,4004.1,4004.0,0.08572563]
[1733611012239,4.08613495,4004.1,4004.0,0.08572563]
[1733611013242,3.89968474,4004.1,4004.0,0.08572563]
[1733611013457,6.18303071,4004.1,4004.0,0.08572563]
[1733611015383,4.08612318,4004.1,4004.0,0.08572563]
[1733611015759,5.99658704,4004.1,4004.0,1.83397563]
[1733611016064,3.89968474,4004.1,4004.0,1.83397563]
[1733611016749,3.7398375,4004.1,4004.0,1.83397563]
[1733611016944,3.90103988,4004.1,4004.0,1.83397563]
[1733611017573,3.90103988,4004.1,4004.0,2.67181302]
[1733611017881,3.21550991,4004.1,4004.0,2.67181302]
[1733611018091,3.21550991,4004.1,4004.0,2.69678551]
[1733611018384,0.86687785,4004.1,4004.0,5.67181302]
[1733611019161,1.04831529,4004.3,4004.2,1.74816]
[1733611019357,3.21460752,4004.3,4004.2,3.6752954]
[1733611019562,2.16629223,4004.3,4004.2,3.75265051]
[1733611020993,2.16581285,4004.3,4004.2,3.75265051]
[1733611022161,0.86632514,4004.3,4004.2,3.75265051]
[1733611022497,1.04831529,4004.6,4004.5,1.74803]
[1733611022666,3.21313227,4004.6,4004.5,2.06057079]
[1733611023055,3.21313227,4004.6,4004.5,2.1379259]
[1733611023358,2.16481698,4004.6,4004.5,2.1379259]
[1733611023972,3.21313227,4004.6,4004.5,2.1379259]
[1733611024487,2.16481698,4004.6,4004.5,2.1379259]
[1733611024867,1.04831529,4004.7,4004.6,1.74798]
[1733611025064,3.21239787,4004.7,4004.6,2.13657059]
[1733611025270,2.16408258,4004.7,4004.6,2.21377224]
[1733611025770,2.16408258,4004.7,4004.6,3.83787051]
[1733611026107,1.57262158,4004.9,4004.6,3.46579224]
[1733611026108,7.87e-06,4004.9,4004.6,3.46579224]
[1733611026269,1.72999107,4005.7,4005.3,2.29438]
[1733611026472,2.0969023,4006.0,4005.8,1.74746]
[1733611026670,3.0102023,4006.1,4005.3,0.5467]
[1733611026993,1.91590647,4006.0,4005.9,1.82164949]
[1733611027177,0.1860411,4006.0,4005.9,1.74741]
[1733611027383,0.9133,4006.1,4006.0,1.74737]
[1733611027678,1.09921359,4006.1,4005.5,1.74759]
[1733611027884,0.9133,4006.1,4006.0,0.07423949]
[1733611028055,1.09922887,4006.1,4006.0,1.74737]
[1733611028258,0.9133,4006.1,4006.0,1.82160949]
[1733611031081,0.1,4006.1,4006.0,1.82160949]
[1733611032011,0.1,4006.1,4006.0,2.89900776]
[1733611032170,0.7584,4006.4,4006.0,1.15163776]
[1733611032391,0.18574253,4006.6,4006.3,1.07739827]
[1733611032604,0.2,4006.7,4006.3,1.07739827]
[1733611032605,0.38574253,4006.7,4006.3,1.07739827]
[1733611032901,0.2,4006.7,4006.4,0.07369782]
[1733611033281,0.2,4006.7,4006.3,1.07739827]
[1733611033678,0.2,4006.7,4006.4,0.07058284]
[1733611033892,0.2,4006.7,4006.4,1.81774284]
[1733611037717,0.7584,4006.8,4006.4,1.81774284]
[1733611040987,0.7584,4006.8,4006.5,1.74715]
[1733611041516,0.7584,4006.8,4006.6,0.0703912]
[1733611044597,0.1,4007.2,4006.7,0.5467]
[1733611044809,0.1,4007.2,4006.9,2.82433827]
[1733611045427,0.1,4007.2,4007.0,0.0701516]
[1733611046817,0.1,4007.2,4007.0,1.8170816]
[1733611047819,1.04157537,4007.5,4007.1,1.74689]
[1733611048157,0.8562,4007.5,4007.2,0.06781321]
[1733611050519,1.04157537,4007.5,4007.2,0.06781321]
[1733611050853,0.8562,4007.5,4007.3,0.06781321]
[1733611051057,0.8562,4007.5,4007.0,1.74694]
[1733611051214,1.04157537,4007.5,4007.4,0.06781321]
[1733611051646,0.28537537,4007.5,4007.1,1.74689]
[1733611051848,0.28537537,4007.5,4007.4,0.06555277]
[1733611052059,0.28537537,4007.5,4007.1,1.74689]
[1733611052258,0.1,4007.2,4007.1,1.74689]
[1733611053474,0.1,4007.2,4007.1,2.06302921]
[1733611054252,0.1,4007.2,4007.1,1.74689]
[1733611055790,0.28590442,4007.2,4007.1,1.74689]
[1733611059149,0.28590442,4007.2,4007.1,1.81153276]
[1733611060167,0.28611418,4007.2,4007.1,1.81153276]
[1733611060681,0.28611418,4007.2,4007.1,0.06464276]
[1733611060934,0.28611418,4007.2,4006.9,2.82436827]
[1733611061220,0.28611418,4007.2,4007.1,0.06464276]
[1733611061221,0.1,4007.2,4007.1,0.06464276]
[1733611061385,0.1,4007.2,4006.9,2.82436827]
[1733611061386,0.28617617,4007.2,4006.9,2.82436827]
[1733611061590,0.18617617,4007.1,4007.0,0.06464276]
[1733611063576,0.18624133,4007.1,4007.0,0.06464276]
[1733611065243,0.18624133,4007.1,4006.7,1.74706]
[1733611065394,0.18624133,4007.0,4006.8,0.06464276]
[1733611065597,0.1,4007.2,4006.7,1.74706]
[1733611065828,0.18626196,4007.1,4006.7,1.74706]
[1733611066026,0.18626196,4007.0,4006.8,1.81166276]
[1733611066209,0.1,4007.2,4006.8,1.81166276]
[1733611066396,0.18628793,4007.1,4006.8,1.81166276]
[1733611066593,0.18628793,4007.0,4006.8,1.81166276]
[1733611066829,0.1,4007.2,4006.8,1.81166276]
[1733611066997,0.18628988,4007.1,4006.8,1.81166276]
[1733611067197,0.18629049,4007.0,4006.8,1.81166276]
[1733611067397,0.1,4007.2,4006.8,1.81166276]
[1733611067718,0.18630891,4007.1,4007.0,1.74694]
[1733611068103,0.18630891,4007.1,4007.0,1.81172163]
[1733611068920,0.95030891,4007.1,4007.0,0.06478163]
[1733611069119,0.95030891,4007.1,4006.7,1.74705]
[1733611069342,2.34368624,4007.0,4006.7,1.74705]
[1733611069501,1.04907873,4006.9,4006.7,1.74705]
[1733611069703,1.04907873,4006.9,4006.3,1.74723]
[1733611069704,1.04943875,4006.8,4006.3,1.74723]
[1733611070056,0.2,4006.6,4006.1,2.82471827]
[1733611070200,0.18630891,4006.5,4006.1,1.07739827]
[1733611070401,0.3,4006.6,4006.1,1.07739827]
[1733611070603,1.04987753,4006.5,4006.1,1.07739827]
[1733611070798,0.2,4005.9,4005.4,2.5116]
[1733611071001,0.2,4005.9,4005.4,2.82499827]
[1733611071428,0.2,4005.9,4005.4,2.9583836]
[1733611071848,0.1,4005.8,4005.4,1.07739827]
[1733611072002,0.2,4005.6,4005.4,1.07739827]
[1733611072854,0.764,4005.5,4004.6,0.5467]
[1733611073145,0.2,4005.2,4004.8,1.74786]
[1733611073313,0.2,4005.2,4004.6,1.07739827]
[1733611073512,0.2,4005.2,4004.7,1.74794]
[1733611073941,0.2,4004.8,4004.6,1.07739827]
[1733611075731,0.3,4004.8,4004.6,1.07739827]
[1733611076049,0.3,4004.8,4004.7,0.06275617]
[1733611077759,1.1061,4004.8,4004.7,0.06275617]
[1733611077908,0.8061,4004.7,4003.9,1.74829]
[1733611078645,0.2,4004.3,4004.1,1.07739827]
[1733611080697,0.2,4004.3,4003.8,2.82572827]
[1733611080999,0.2,4004.3,4003.9,1.74828]
[1733611082135,0.2,4004.3,4004.0,1.74824]
[1733611082336,0.2,4004.3,4003.8,2.82570827]
[1733611083842,0.2,4004.3,4003.9,1.74828]
[1733611084658,0.8061,4004.2,4003.9,1.74828]
[1733611086276,0.2,4003.9,4003.8,1.07739827]
[1733611086570,0.2,4003.9,4003.7,1.74838]
[1733611086781,0.2,4003.9,4003.2,0.13342565]
[1733611086933,0.2,4003.9,4003.6,2.82579827]
[1733611087143,0.2,4003.9,4003.7,1.74837]
[1733611087345,0.2,4003.9,4003.1,0.5467]
[1733611087565,0.2,4003.9,4003.3,1.07739827]
[1733611088879,0.2,4003.9,4003.6,1.07739827]
[1733611089369,0.2,4003.9,4003.5,1.74846]
[1733611089370,0.3,4003.9,4003.5,1.74846]
[1733611089565,0.9947,4003.6,4003.0,3.0]
[1733611089880,0.9947,4003.6,4003.3,2.82594827]
[1733611091185,0.9947,4003.6,4003.4,0.06572775]
[1733611093562,0.9947,4003.6,4003.4,1.81419775]
[1733611093762,0.9947,4003.6,4003.5,1.74847]
[1733611093973,0.9947,4003.6,4003.5,1.81424572]
[1733611104113,0.9947,4003.6,4003.5,2.89164399]
[1733611104899,0.2,4003.6,4003.5,2.89164399]
[1733611105099,0.2,4003.6,4003.5,3.35566839]
[1733611106261,0.2,4003.6,4003.5,2.89164399]
[1733611108107,0.2,4003.6,4003.5,1.81424572]
[1733611108269,1.0111,4003.6,4003.5,1.81424572]
[1733611109309,1.1111,4003.6,4003.5,1.81424572]
[1733611126488,1.1111,4003.6,4003.5,0.06577572]
[1733611126827,1.1111,4003.6,4003.4,1.07739827]
[1733611126997,1.1111,4003.6,4003.5,0.06088169]
[1733611127194,1.1111,4003.6,4003.4,2.82590827]
[1733611127400,1.1111,4003.6,4003.5,0.06088169]
[1733611127613,1.1111,4003.6,4003.4,2.82590827]
[1733611127814,1.1111,4003.6,4003.5,0.06088169]
[1733611128116,1.1111,4003.6,4003.4,1.07739827]
[1733611128284,1.1111,4003.6,4003.5,0.06088169]
[1733611128699,1.1111,4003.6,4003.4,1.07739827]
[1733611128921,1.1111,4003.6,4003.5,0.06088169]
[1733611129126,1.1111,4003.6,4003.1,1.07739827]
[1733611129127,3.49161353,4003.6,4003.1,1.07739827]
[1733611129338,0.3,4003.2,4003.1,1.07739827]
[1733611129503,0.3,4003.2,4002.8,1.74874]
[1733611129504,0.2,4002.9,4002.8,1.74874]
[1733611129709,0.2,4002.9,4002.7,1.07739827]
[1733611129926,0.1,4002.8,4002.7,1.07739827]
[1733611136154,0.1,4002.8,4002.7,1.1386346]
[1733611137458,0.1,4002.8,4002.7,2.8874446]
[1733611140866,0.1,4002.8,4002.7,1.1386346]
[1733611150331,3.19187,4002.8,4002.7,0.06123633]
[1733611150525,4.60856044,4002.8,4002.7,0.06123633]
[1733611150814,0.2,4001.7,4001.6,1.74929]
[1733611151327,0.2,4001.7,4001.5,1.04844275]
[1733611151629,0.2,4001.7,4001.5,1.07739827]
[1733611151822,0.2,4001.7,4001.5,2.82672827]
[1733611156323,0.2,4001.7,4001.6,1.7493]
[1733611156519,0.1,4001.9,4001.8,1.74921]
[1733611156849,0.1,4001.9,4001.8,3.37330827]
[1733611157754,0.2,4002.4,4002.3,1.74899]
[1733611157955,0.1,4002.6,4002.5,1.7489]
[1733611158322,0.7931,4003.2,4002.5,1.7489]
[1733611158323,0.1,4002.9,4002.8,1.74877]
[1733611159850,0.2,4003.0,4002.9,1.74873]
[1733611161260,0.1,4002.8,4002.0,2.67254102]
[1733611161428,0.1,4002.5,4002.2,1.74901]
[1733611161755,0.9931,4002.4,4002.0,1.07739827]
[1733611161935,0.1,4002.2,4002.0,1.07739827]
[1733611165231,0.2,4002.1,4002.0,1.07739827]
[1733611166360,0.2,4002.1,4002.0,1.13315329]
[1733611167342,0.2,4002.1,4002.0,0.05575502]
[1733611171992,0.9501,4002.1,4002.0,0.05575502]
[1733611172168,1.230008,4002.1,4001.5,1.07739827]
[1733611172372,0.2,4001.6,4001.5,1.07739827]
[1733611172681,0.3,4001.6,4001.5,1.07739827]
[1733611174297,0.3,4001.6,4001.4,1.07739827]
[1733611175397,1.0501,4001.6,4001.4,1.07739827]
[1733611178972,1.0501,4001.6,4001.1,1.07739827]
[1733611179709,0.2,4001.3,4001.1,1.07739827]
[1733611181167,0.2,4001.3,4001.2,1.80231657]
[1733611181372,0.2,4001.3,4001.2,0.05284657]
[1733611184480,0.3,4001.3,4001.1,1.07739827]
[1733611184810,0.3,4001.3,4001.2,0.0530336]
[1733611186312,1.0501,4001.3,4000.7,1.07739827]
[1733611186509,1.0501,4001.3,4001.2,0.05311994]
[1733611186685,1.0501,4001.3,4000.7,1.07739827]
[1733611186880,1.0501,4001.3,4001.2,0.05311994]
[1733611187099,0.2,4000.9,4000.7,1.07739827]
[1733611187277,0.3,4000.9,4000.7,1.07739827]
[1733611187999,0.3,4000.9,4000.7,2.82706827]
[1733611188770,0.3,4000.9,4000.3,0.13054372]
[1733611189113,0.3,4000.9,4000.6,1.07739827]
[1733611189284,0.3,4000.9,4000.8,1.07739827]
[1733611190010,0.3,4000.9,4000.8,2.82704827]
[1733611193318,0.3,4000.9,4000.8,1.74965]
[1733611193523,0.3,4000.9,4000.8,2.29635]
[1733611193706,0.3,4000.9,4000.8,3.37374827]
[1733611194188,0.3,4000.9,4000.8,2.82704827]
[1733611194390,0.1,4000.9,4000.8,2.08702483]
[1733611196095,0.1,4000.9,4000.8,2.13934791]
[1733611196335,0.1,4000.9,4000.8,1.80197308]
[1733611200191,0.3,4001.2,4000.8,1.80197308]
[1733611200399,0.1,4001.2,4001.1,2.29621]
[1733611200600,0.1,4001.5,4001.4,1.74938]
[1733611201148,0.1,4001.9,4001.8,1.74921]
[1733611201405,0.1,4001.9,4001.8,1.79960184]
[1733611204932,0.1,4001.9,4001.8,2.31690285]
[1733611205136,0.2,4002.3,4001.8,2.31690285]
[1733611205137,0.1,4002.3,4001.8,2.86360285]
[1733611205301,0.3,4002.6,4002.5,1.7489]
[1733611205502,0.3,4002.6,4002.5,1.79876407]
[1733611207510,0.1,4002.6,4002.5,1.79876407]
[1733611208242,0.3,4002.6,4002.5,1.79876407]
[1733611208737,0.1,4002.6,4002.5,1.79876407]
[1733611209522,0.3,4002.6,4002.5,1.79876407]
[1733611209836,0.1,4002.6,4002.5,1.79876407]
[1733611210240,0.3,4002.6,4002.5,1.79876407]
[1733611212466,0.1,4002.6,4002.5,1.79876407]
[1733611212842,0.3,4002.6,4002.5,1.79876407]
[1733611216970,0.1,4002.6,4002.5,1.79876407]
[1733611232383,0.1,4002.6,4002.5,1.84140148]
[1733611236282,0.1,4002.6,4002.5,2.91879975]
[1733611239432,0.1,4002.6,4002.5,3.93228073]
[1733611239729,0.1,4002.9,4002.8,1.74877]
[1733611239926,0.1,4002.9,4002.8,2.91544492]
[1733611241629,0.757,4003.6,4003.1,1.74864]
[1733611241630,0.1,4003.2,4003.1,1.74864]
[1733611241996,0.1,4003.2,4003.1,2.91521423]
[1733611247491,0.1,4003.5,4003.3,1.74855]
[1733611247714,0.2,4003.4,4003.3,1.74855]
[1733611248304,0.2,4003.4,4003.1,2.82602827]
[1733611250002,0.2,4003.4,4003.2,1.74857]
[1733611251010,0.1,4003.5,4003.1,1.07739827]
[1733611251201,0.1,4003.5,4003.3,1.74855]
[1733611251403,0.2,4003.4,4003.3,1.74855]
[1733611251629,0.1,4003.5,4003.3,1.74855]
[1733611251808,0.1,4003.5,4003.4,1.74851]
[1733611252814,0.65,4003.5,4003.4,1.74851]
[1733611256121,0.65,4003.5,4003.4,1.8332511]
[1733611260248,0.65,4003.5,4003.4,2.91064937]
[1733611261117,0.1,4003.5,4003.4,2.91064937]
[1733611261453,0.1,4003.5,4003.4,3.43124531]
[1733611270373,1.04507667,4004.0,4003.7,1.74838]
[1733611270572,0.1,4004.1,4003.9,1.07739827]
[1733611270728,0.1,4004.1,4004.0,1.74825]
[1733611270933,0.96534833,4004.1,4004.0,1.74825]
[1733611271131,0.96534833,4004.1,4004.0,1.8298022]
[1733611271538,1.51534833,4004.1,4004.0,1.8298022]
[1733611272365,0.96534833,4004.1,4004.0,1.8298022]
[1733611272534,0.96534833,4004.1,4004.0,2.35003025]
[1733611272735,0.1,4004.1,4004.0,2.35003025]
[1733611274565,0.1,4004.1,4004.0,0.60178025]
[1733611274775,0.1,4004.1,4004.0,1.8298022]
[1733611275841,0.1,4004.1,4004.0,0.0815522]
[1733611276179,0.1,4004.1,4004.0,1.8298022]
[1733611277148,0.1,4004.1,4004.0,0.0815522]
[1733611277347,0.1,4004.1,4004.0,1.8298022]
[1733611277941,0.1,4004.1,4004.0,2.36313652]
[1733611278142,0.95617733,4004.3,4004.2,1.74816]
[1733611278339,0.95617733,4004.3,4004.2,2.82555827]
[1733611278565,0.95617733,4004.3,4004.2,2.90658822]
[1733611279479,0.65,4004.5,4004.4,1.74807]
[1733611279681,2.81242922,4004.5,4004.4,1.74807]
[1733611279869,0.75,4004.4,4004.2,1.74815]
[1733611280069,0.1,4004.1,4004.0,1.74824]
[1733611281579,0.1,4004.1,4004.0,1.74825]
[1733611282987,1.79507667,4004.4,4003.9,1.07739827]
[1733611283163,0.1,4004.1,4004.0,1.74825]
[1733611284756,1.79507667,4004.4,4003.9,1.07739827]
[1733611284957,0.1,4004.1,4004.0,1.74825]
[1733611285504,0.96523182,4004.1,4004.0,1.74825]
[1733611286364,2.26324985,4004.1,4004.0,1.82923205]
[1733611287186,3.76704985,4004.1,4004.0,0.08098205]
[1733611287388,6.08372847,4004.1,4004.0,0.08098205]
[1733611287706,6.08372847,4004.1,4003.6,1.74841]
[1733611287707,0.55,4004.0,4003.6,1.74841]
[1733611287882,5.69712994,4004.1,4003.6,1.74841]
[1733611287883,0.55,4003.7,4003.6,1.74841]
[1733611288080,1.41523182,4003.7,4003.6,1.74841]
[1733611288395,2.71389153,4003.7,4003.6,1.74841]
[1733611288704,3.76061544,4003.7,4003.6,1.74841]
[1733611289071,2.71389153,4003.7,4003.6,1.74841]
[1733611289408,3.76061544,4003.7,4003.6,1.74841]
[1733611289612,2.71389153,4003.7,4003.6,1.74841]
[1733611289811,3.76061544,4003.7,4003.6,1.74841]
[1733611292177,2.71389153,4003.7,4003.6,1.74841]
[1733611292518,3.76061544,4003.7,4003.6,1.74841]
[1733611293376,3.76051577,4003.7,4003.6,1.74841]
[1733611297417,2.09015335,4004.2,4003.9,0.5467]
[1733611297628,1.7305589,4004.6,4004.1,1.07739827]
[1733611297923,0.2,4004.8,4003.9,0.5467]
[1733611297924,0.2,4004.8,4004.7,1.74794]
[1733611298728,0.75,4004.8,4004.7,1.74794]
[1733611301108,0.55,4004.8,4004.7,1.82662522]
[1733611301926,0.75,4004.8,4004.7,1.82662522]
[1733611307527,2.04704783,4004.8,4004.7,1.82662522]
[1733611308052,0.75,4004.8,4004.7,1.82662522]
[1733611308221,3.0928037,4004.8,4004.7,1.82662522]
[1733611309046,2.04705002,4004.8,4004.7,1.82662522]
[1733611310640,3.0928037,4004.8,4004.7,1.82662522]
[1733611311820,2.04705002,4004.8,4004.7,1.82662522]
[1733611312023,0.75,4004.8,4004.7,1.82662522]
[1733611333094,0.75,4004.8,4004.7,2.90402349]
[1733611342082,0.75,4004.8,4004.7,1.82662522]
[1733611348989,1.5181,4004.8,4004.7,1.82662522]
[1733611349183,1.78448537,4004.8,4004.7,1.82662522]
[1733611350286,1.5181,4004.8,4004.7,1.82662522]
[1733611351095,2.3840761,4004.8,4004.7,1.82662522]
[1733611351493,1.5181,4004.8,4004.7,1.82662522]
[1733611353540,1.5181,4004.8,4004.7,0.07868522]
[1733611353824,1.5181,4004.8,4004.0,3.16755162]
[1733611353825,3.68345935,4004.8,4004.1,1.04507667]
[1733611354026,1.57795433,4004.7,4004.1,1.04507667]
[1733611354257,0.55,4004.4,4004.2,0.07520062]
[1733611355615,1.5181,4004.3,4004.2,0.07520062]
[1733611356031,0.55,4004.2,4003.9,2.79334667]
[1733611356238,0.65,4004.2,4004.0,0.07520062]
[1733611356936,0.65,4004.2,4004.0,1.12027729]
[1733611357616,0.81181,4004.2,4004.0,0.07520062]
[1733611357805,0.81181,4004.2,4003.5,3.87092494]
[1733611357806,2.71620613,4004.1,4003.5,3.87092494]
[1733611358022,0.65,4003.6,4003.5,3.87092494]
[1733611358205,0.65,4003.6,4003.5,2.82584827]
[1733611359011,0.65,4003.6,4003.5,1.74845]
[1733611361009,0.65,4003.6,4003.5,1.81863725]
[1733611362637,0.65,4003.6,4003.5,0.07018725]
[1733611362844,0.55,4003.5,4003.3,1.07739827]
[1733611362998,0.55,4003.5,4003.4,0.06558609]
[1733611364357,1.5767,4003.5,4003.4,0.06558609]
[1733611364497,1.74437,4003.5,4003.4,0.06558609]
[1733611364694,0.65,4003.2,4003.1,1.07739827]
[1733611365843,0.85,4003.2,4003.1,1.07739827]
[1733611372937,0.55,4003.1,4002.8,2.82616827]
[1733611376056,0.55,4003.1,4002.9,0.06460382]
[1733611380071,0.55,4003.1,4002.9,1.14200209]
[1733611383475,0.55,4003.1,4002.9,0.06460382]
[1733611385147,0.8302,4003.0,4002.9,0.06460382]
[1733611385349,1.3802,4003.0,4002.9,0.06460382]
[1733611385587,0.65,4002.9,4002.5,1.74886]
[1733611386455,0.55,4002.7,4002.5,1.74886]
[1733611386868,0.55,4002.7,4002.4,1.07739827]
[1733611387368,0.55,4002.7,4002.2,2.2957]
[1733611387570,0.1,4002.5,4002.2,3.37309827]
[1733611387890,0.1,4002.5,4002.2,2.82639827]
[1733611388060,0.1,4002.5,4001.9,0.5467]
[1733611388061,0.2,4002.3,4002.0,1.74911]
[1733611388267,0.55,4002.2,4002.0,1.74911]
[1733611388464,0.55,4002.2,4002.1,1.07739827]
[1733611389183,0.55,4002.2,4002.1,2.82647827]
[1733611391099,0.55,4002.2,4002.1,2.88529563]
[1733611391678,0.65,4002.2,4002.1,2.88529563]
[1733611397519,0.1,4002.2,4002.1,2.88529563]
[1733611405879,0.1,4002.2,4002.1,1.13621563]
[1733611412206,0.8621,4002.2,4002.1,1.13621563]
[1733611413231,1.4121,4002.2,4002.1,0.05881736]
[1733611413400,1.57331,4002.2,4002.1,0.05881736]
[1733611413600,0.55,4002.1,4001.9,1.07739827]
[1733611414237,0.55,4002.1,4001.6,1.04507667]
[1733611414545,0.55,4002.1,4001.8,1.07739827]
[1733611414546,0.1,4001.9,4001.8,1.07739827]
[1733611415195,0.3,4001.9,4001.8,1.07739827]
[1733611418306,0.3,4001.6,4001.5,1.8774266]
[1733611418607,0.3,4001.6,4001.5,2.95482487]
[1733611418831,0.3,4001.6,4001.5,3.99990154]
[1733611419220,0.3,4001.6,4001.4,1.04507667]
[1733611419415,0.3,4001.6,4001.4,2.82676827]
[1733611421154,0.3,4001.6,4001.5,0.05959286]
[1733611427812,0.3,4001.6,4001.5,2.88633113]
[1733611428132,0.3,4001.6,4001.5,3.27992276]
[1733611430653,0.2,4001.6,4001.5,2.74922449]
[1733611430956,0.2,4001.6,4001.5,3.82662276]
[1733611431663,0.2,4001.6,4001.5,2.88678198]
[1733611433339,0.2,4001.6,4001.5,1.13744198]
[1733611433555,0.55,4001.8,4001.5,2.88676198]
[1733611434347,0.2,4001.9,4001.5,2.88676198]
[1733611434546,0.2,4001.9,4001.8,1.07739827]
[1733611434968,0.2,4001.9,4001.8,1.13746596]
[1733611439477,0.2,4001.9,4001.8,0.06006769]
[1733611439685,0.2,4001.9,4001.6,1.74929]
[1733611439856,0.2,4001.9,4001.7,0.06005329]
[1733611441190,0.8246,4001.8,4001.7,0.06005329]
[1733611446557,0.2,4001.9,4001.7,0.06005329]
[1733611447985,0.2,4001.9,4001.7,2.88668156]
[1733611450474,0.2,4001.9,4001.7,1.80928329]
[1733611450908,0.2,4001.9,4001.8,0.05800355]
[1733611451077,0.2,4001.9,4001.7,1.57454444]
[1733611451280,0.2,4001.9,4001.8,0.05800355]
[1733611451477,0.2,4001.9,4001.7,1.57454444]
[1733611451774,0.2,4001.9,4001.8,0.05800355]
[1733611452104,0.2,4001.9,4001.7,1.57454444]
[1733611452301,0.2,4001.9,4001.8,0.05800355]
[1733611452479,0.2,4001.9,4001.7,1.57454444]
[1733611452680,0.2,4001.9,4001.8,0.05800355]
[1733611452882,0.2,4001.9,4001.7,1.57454444]
[1733611453199,0.2,4001.9,4001.8,0.05800355]
[1733611453592,0.2,4001.9,4001.7,1.57454444]
[1733611453794,0.2,4001.9,4001.8,0.05800355]
[1733611453962,0.2,4001.9,4001.7,1.57454444]
[1733611454168,0.2,4001.9,4001.8,0.05800355]
[1733611454414,0.2,4001.9,4001.7,1.57454444]
[1733611454704,0.2,4001.9,4001.8,0.05800355]
[1733611454911,0.2,4001.9,4001.7,1.57454444]
[1733611455109,0.2,4001.9,4001.8,0.05800355]
[1733611455271,0.2,4001.9,4001.7,1.57454444]
[1733611455488,0.2,4001.9,4001.8,0.05800355]
[1733611455831,0.2,4001.9,4001.7,1.57454444]
[1733611456124,0.2,4001.9,4001.8,0.05800355]
[1733611456534,0.2,4001.9,4001.5,1.74934]
[1733611456824,0.2,4001.9,4001.8,0.05800355]
[1733611457026,1.06692484,4001.9,4001.5,1.74934]
[1733611457194,0.2,4001.9,4001.8,0.05800355]
[1733611457394,1.06702247,4001.9,4001.5,1.74934]
[1733611457595,0.2,4001.9,4001.8,0.05800355]
[1733611457791,1.06702255,4001.9,4001.5,1.74934]